bitfinex-derivatives/quotes_ETHF0:USTF0_20251006
["timestamp","ask_amount","ask_price","bid_price","bid_amount"]
[1759755186306,0.9669,4581.1,4581.0,1.157]
[1759755186599,0.7509,4581.1,4581.0,1.157]
[1759755186807,0.5264,4581.1,4581.0,1.157]
[1759755187006,0.7509,4581.1,4581.0,1.157]
[1759755187207,1.1437,4581.1,4581.0,1.157]
[1759755189204,1.2641,4581.0,4580.9,0.00169285]
[1759755190010,1.2641,4581.0,4580.9,0.22589285]
[1759755192107,1.2641,4581.0,4580.9,0.00169285]
[1759755196004,1.4831,4581.0,4580.9,0.00169285]
[1759755198805,1.4831,4581.0,4580.9,0.22589285]
[1759755199210,1.4831,4581.0,4580.9,0.00169285]
[1759755200609,1.2641,4581.0,4580.9,0.21089285]
[1759755200809,1.4831,4581.0,4580.9,1.13190285]
[1759755201000,1.4831,4581.0,4580.9,0.73909285]
[1759755201206,1.4831,4581.0,4580.9,0.42359285]
[1759755201609,1.4831,4581.0,4580.9,0.21089285]
[1759755202011,1.4831,4581.0,4580.9,0.00169285]
[1759755202213,1.4831,4581.0,4580.9,0.21089285]
[1759755202514,1.4831,4581.0,4580.9,0.00169285]
[1759755203212,1.96449371,4581.0,4580.9,0.00169285]
[1759755204514,1.96449371,4581.0,4580.9,0.21089285]
[1759755204715,1.4831,4581.0,4580.9,0.21089285]
[1759755204916,1.96462522,4581.0,4580.9,0.00169285]
[1759755206311,1.96462522,4581.0,4580.9,0.21089285]
[1759755207123,1.96462522,4581.0,4580.9,0.00169285]
[1759755213038,1.74562522,4581.0,4580.9,0.00169285]
[1759755213238,1.96462522,4581.0,4580.9,0.00169285]
[1759755213538,1.74562522,4581.0,4580.9,0.00169285]
[1759755213737,1.96462522,4581.0,4580.9,0.00169285]
[1759755214234,1.35282522,4581.0,4580.9,0.73909285]
[1759755214440,1.57182522,4581.0,4580.9,0.73909285]
[1759755214833,1.96462522,4581.0,4580.9,0.73909285]
[1759755215137,1.96462522,4581.0,4580.9,0.42359285]
[1759755215532,1.96462522,4581.0,4580.9,0.00169285]
[1759755217635,1.74562522,4581.0,4580.9,0.00169285]
[1759755217842,1.96462522,4581.0,4580.9,0.00169285]
[1759755219348,1.96462522,4581.0,4580.9,0.22049285]
[1759755220349,1.96462522,4581.0,4580.9,0.00169285]
[1759755231442,1.57182522,4581.0,4580.9,0.41699285]
[1759755231643,0.48152522,4581.0,4580.9,6.12130285]
[1759755231851,0.5438,4581.3,4581.2,1.11959]
[1759755232045,0.7628,4581.3,4581.2,1.11959]
[1759755232353,0.5501,4581.3,4581.2,41.91959]
[1759755234353,0.3311,4581.3,4581.2,46.91959]
[1759755234562,0.3311,4581.3,4581.2,41.91959]
[1759755234949,0.3311,4581.3,4581.2,41.5268]
[1759755238562,0.219,4581.5,4581.4,0.4153]
[1759755238760,0.3361,4582.0,4581.9,0.2083]
[1759755239064,1.03672086,4582.0,4581.9,0.7268]
[1759755239363,1.1093,4582.0,4581.9,0.7268]
[1759755240460,1.1093,4582.0,4581.9,0.4153]
[1759755242667,0.8893,4581.5,4581.4,3.4161]
[1759755242965,0.8893,4581.5,4581.4,4.32736]
[1759755243168,0.5438,4581.5,4581.4,4.32736]
[1759755243556,0.3311,4581.5,4581.4,4.32736]
[1759755244062,0.73512,4582.0,4581.9,0.39273]
[1759755244365,1.50202,4582.0,4581.9,0.60103]
[1759755247861,1.28302,4582.0,4581.9,0.60103]
[1759755248055,1.50202,4582.0,4581.9,0.60103]
[1759755248971,1.50202,4582.0,4581.9,0.2083]
[1759755249270,1.15964,4581.8,4581.7,0.2083]
[1759755249470,1.15964,4581.8,4581.7,0.60104]
[1759755250769,0.7669,4581.8,4581.7,0.60104]
[1759755252067,0.7669,4581.8,4581.7,1.11954]
[1759755252262,0.72878,4582.5,4582.4,0.2083]
[1759755252468,1.25722056,4582.5,4582.4,0.60098]
[1759755252975,1.58832056,4582.5,4582.4,41.40098]
[1759755253164,1.98100056,4582.5,4582.4,41.0083]
[1759755254272,1.98100056,4582.5,4582.4,41.40098]
[1759755255972,1.98100056,4582.5,4582.4,41.0083]
[1759755256162,1.76200056,4582.5,4582.4,41.0083]
[1759755256365,1.98100056,4582.5,4582.4,41.0083]
[1759755256566,1.98100056,4582.5,4582.4,40.8]
[1759755257973,1.14951,4582.1,4582.0,0.81392]
[1759755258174,1.36851,4582.1,4582.0,0.81392]
[1759755258376,1.36851,4582.1,4582.0,41.61392]
[1759755258575,0.9758,4582.1,4582.0,41.94922]
[1759755259279,0.5437,4582.1,4582.0,41.94922]
[1759755259974,0.93641,4582.1,4582.0,41.61392]
[1759755260283,0.5437,4582.1,4582.0,41.94922]
[1759755261170,1.02355234,4582.1,4582.0,41.94922]
[1759755261476,1.41626234,4582.1,4582.0,41.94922]
[1759755261976,0.93641,4582.1,4582.0,41.94922]
[1759755262178,0.71741,4582.1,4582.0,41.94922]
[1759755263178,1.19727293,4582.1,4582.0,41.94922]
[1759755263379,0.3247,4582.1,4582.0,41.94922]
[1759755263579,0.80455702,4582.1,4582.0,41.94922]
[1759755263878,0.3247,4582.1,4582.0,41.94922]
[1759755264074,0.80457606,4582.1,4582.0,41.94922]
[1759755264476,0.47987606,4582.1,4582.0,42.01912]
[1759755266681,0.87258606,4582.1,4582.0,42.01912]
[1759755267483,1.19728606,4582.1,4582.0,42.01912]
[1759755267683,1.19728606,4582.1,4582.0,41.94922]
[1759755269284,0.80457606,4582.1,4582.0,41.94922]
[1759755270083,1.19728606,4582.1,4582.0,41.94922]
[1759755271476,1.19722487,4582.1,4582.0,41.94922]
[1759755271674,0.71741,4582.1,4582.0,41.94922]
[1759755272889,0.3247,4582.1,4582.0,41.94922]
[1759755274489,0.80456217,4582.1,4582.0,41.94922]
[1759755275193,1.19727217,4582.1,4582.0,41.94922]
[1759755276592,1.21174546,4582.1,4582.0,41.94922]
[1759755276894,0.81903546,4582.1,4582.0,41.94922]
[1759755279394,0.47986217,4582.1,4582.0,41.94922]
[1759755279594,0.50167312,4582.1,4582.0,42.01862]
[1759755281089,0.50874479,4582.1,4582.0,42.01862]
[1759755283788,0.51581646,4582.1,4582.0,42.01862]
[1759755286100,0.51581646,4582.1,4582.0,45.22642]
[1759755288298,0.84441646,4582.1,4582.0,45.22642]
[1759755290592,1.23712646,4582.1,4582.0,45.22642]
[1759755292602,1.23823898,4582.1,4582.0,45.22642]
[1759755293597,1.20117217,4582.1,4582.0,45.22642]
[1759755293805,1.2393529,4582.1,4582.0,45.15702]
[1759755294004,0.8466429,4582.1,4582.0,45.15702]
[1759755294704,1.20117217,4582.1,4582.0,45.15702]
[1759755294905,1.24046682,4582.1,4582.0,45.15702]
[1759755295098,1.24046682,4582.1,4582.0,44.7643]
[1759755295699,1.24046682,4582.1,4582.0,45.15702]
[1759755295896,1.2415777,4582.1,4582.0,45.15702]
[1759755298207,1.24890341,4582.1,4582.0,45.15702]
[1759755298708,1.24890341,4582.1,4582.0,44.7643]
[1759755298904,0.52759341,4582.1,4582.0,45.22642]
[1759755299105,0.04773124,4582.1,4582.0,45.22642]
[1759755300308,0.3286,4582.9,4582.6,1.09120305]
[1759755300309,0.39266,4582.7,4582.6,1.09120305]
[1759755300611,1.09178397,4582.7,4582.6,3.9614]
[1759755300911,1.42038397,4582.7,4582.6,3.9614]
[1759755301209,1.20138397,4582.7,4582.6,4.35407]
[1759755301410,1.42038397,4582.7,4582.6,4.35407]
[1759755302211,0.48012397,4582.7,4582.6,4.35407]
[1759755303510,0.48012397,4582.7,4582.6,3.6359]
[1759755303511,1.62348397,4582.7,4582.6,3.6359]
[1759755303705,1.62348397,4582.7,4582.6,3.4202]
[1759755303903,1.84248397,4582.7,4582.6,3.2078]
[1759755304104,1.84248397,4582.7,4582.6,3.4202]
[1759755304808,1.84248397,4582.7,4582.6,3.6359]
[1759755305010,1.84248397,4582.7,4582.6,3.9614]
[1759755312422,1.62458397,4582.7,4582.6,3.9614]
[1759755312810,1.62458397,4582.7,4582.6,4.35407]
[1759755313716,0.69912397,4582.7,4582.6,4.35407]
[1759755314122,0.39259,4583.5,4583.4,0.8207]
[1759755314415,0.39257,4583.8,4583.6,0.39258]
[1759755314621,0.39257,4583.8,4583.7,0.7536]
[1759755314822,1.09298846,4583.8,4583.7,0.7536]
[1759755315122,1.42158846,4583.8,4583.7,0.7536]
[1759755316323,1.62578846,4583.8,4583.7,0.7536]
[1759755317716,0.48141846,4583.8,4583.7,1.14617]
[1759755317920,0.00160591,4584.0,4583.9,1.12156]
[1759755321525,0.00160591,4584.0,4583.9,41.92156]
[1759755322727,0.00160591,4584.0,4583.9,42.14056]
[1759755327130,0.47450591,4584.0,4583.9,41.92156]
[1759755327530,0.33890591,4584.0,4583.9,41.92156]
[1759755329438,0.00160591,4584.0,4583.9,41.92156]
[1759755331338,0.33890591,4584.0,4583.9,41.92156]
[1759755331538,0.47450591,4584.0,4583.9,41.92156]
[1759755331733,0.49025334,4584.0,4583.9,41.92156]
[1759755333440,0.35465334,4584.0,4583.9,41.92156]
[1759755333938,0.35603339,4584.0,4583.9,41.92156]
[1759755334641,0.01873339,4584.0,4583.9,41.92156]
[1759755335438,0.35603339,4584.0,4583.9,41.92156]
[1759755335946,0.36176481,4584.0,4583.9,41.92156]
[1759755336844,0.87701481,4584.0,4583.9,40.8]
[1759755337047,0.7479,4583.7,4583.6,3.2078]
[1759755338043,0.77649032,4583.7,4583.6,3.2078]
[1759755338244,0.5638,4583.5,4583.4,0.3926]
[1759755338545,0.8706,4583.5,4583.4,0.3926]
[1759755339249,0.89919032,4583.5,4583.4,0.5973]
[1759755339657,0.3068,4583.4,4583.1,44.0078]
[1759755339844,0.7479,4583.2,4583.1,44.0078]
[1759755340043,0.77649032,4583.2,4583.1,44.0078]
[1759755340250,0.78222174,4583.2,4583.1,44.0078]
[1759755342448,0.78867828,4583.2,4583.1,44.0078]
[1759755343857,0.78867828,4583.2,4583.1,3.2078]
[1759755344357,0.78867828,4583.2,4583.1,3.4125]
[1759755344659,0.79513482,4583.2,4583.1,3.4125]
[1759755346763,0.80159136,4583.2,4583.1,3.4125]
[1759755347159,1.01959136,4583.2,4583.1,3.4125]
[1759755348054,1.49791028,4583.2,4583.1,3.4125]
[1759755349152,1.01959136,4583.2,4583.1,3.4125]
[1759755351764,1.497854,4583.2,4583.1,3.4125]
[1759755351965,1.890474,4583.2,4583.1,0.2047]
[1759755352462,1.890474,4583.2,4583.1,0.59732]
[1759755353568,1.890474,4583.2,4583.1,0.2047]
[1759755354764,1.41221136,4583.2,4583.1,0.2047]
[1759755354962,1.89020304,4583.2,4583.1,0.2047]
[1759755355262,1.89020304,4583.2,4583.1,0.59732]
[1759755361467,1.89020304,4583.2,4583.1,0.2047]
[1759755361762,1.89020304,4583.2,4581.1,1.56711666]
[1759755361763,0.61899,4581.2,4581.1,1.56711666]
[1759755361961,0.7702,4581.1,4581.0,3.2078]
[1759755362167,1.2857,4581.0,4580.5,3.2078]
[1759755362363,1.2857,4581.0,4580.9,0.21269285]
[1759755362564,1.5047,4581.0,4580.9,0.21269285]
[1759755362759,1.55839136,4581.0,4580.9,0.42059285]
[1759755363565,1.55839136,4581.0,4580.9,0.21269285]
[1759755364968,1.33939136,4581.0,4580.9,0.21269285]
[1759755365170,1.55839136,4581.0,4580.9,0.21269285]
[1759755365861,1.55839136,4581.0,4580.9,0.00169285]
[1759755369574,1.33939136,4581.0,4580.9,0.00169285]
[1759755369968,1.55839136,4581.0,4580.9,0.00169285]
[1759755378774,1.33939136,4581.0,4580.9,0.00169285]
[1759755378975,1.33939136,4581.0,4580.9,0.21569285]
[1759755379279,1.55839136,4581.0,4580.9,0.00169285]
[1759755380873,1.33939136,4581.0,4580.9,0.00169285]
[1759755381180,1.55839136,4581.0,4580.9,0.00169285]
[1759755381679,1.33939136,4581.0,4580.9,0.00169285]
[1759755382076,1.55839136,4581.0,4580.9,0.00169285]
[1759755382471,0.71296,4580.4,4580.3,40.8]
[1759755382681,0.7507,4580.1,4580.0,3.4218]
[1759755382979,1.41627136,4580.1,4580.0,3.4218]
[1759755383171,1.41627136,4580.1,4580.0,44.2218]
[1759755383575,1.4190565,4580.1,4580.0,44.22339174]
[1759755385180,1.42052199,4580.1,4580.0,44.22339174]
[1759755385980,1.42052199,4580.1,4580.0,40.80159174]
[1759755386185,1.14362,4579.6,4579.5,0.214]
[1759755386382,1.36262,4579.6,4579.5,0.7691]
[1759755386685,1.36262,4579.6,4579.5,41.5691]
[1759755387073,1.36262,4579.6,4579.5,0.4384568]
[1759755387279,1.42983907,4579.6,4579.5,0.4384568]
[1759755387682,1.42983907,4579.6,4579.5,0.2157568]
[1759755387880,1.42983907,4579.6,4579.5,0.0017568]
[1759755388484,1.04295018,4579.6,4579.5,0.4384568]
[1759755388778,1.04295018,4579.6,4579.5,9.0508568]
[1759755388779,0.07325018,4579.6,4579.5,9.0508568]
[1759755389587,0.07928129,4579.6,4579.5,49.8070868]
[1759755390682,0.00278514,4580.1,4580.0,1.28449]
[1759755390887,0.00278514,4580.1,4580.0,4.49229]
[1759755393687,0.01286786,4580.1,4580.0,4.49229]
[1759755393891,0.54626786,4580.1,4580.0,3.9769]
[1759755394781,0.33296786,4580.1,4580.0,3.9769]
[1759755396987,0.54276786,4580.1,4580.0,3.9769]
[1759755397790,0.54478754,4580.1,4580.0,3.9769]
[1759755398986,0.55032424,4580.1,4580.0,3.9769]
[1759755399483,0.34052424,4580.1,4580.0,3.9769]
[1759755399679,0.02042424,4580.1,4580.0,4.0988]
[1759755400186,0.02596094,4580.1,4580.0,9.0988]
[1759755400391,3.2078,4581.4,4581.1,0.3928]
[1759755400683,0.8609,4581.5,4581.4,0.7301]
[1759755400880,0.48545453,4581.5,4581.4,0.7301]
[1759755401082,0.70445453,4581.5,4581.4,0.7301]
[1759755401281,0.22136389,4581.5,4581.4,0.7301]
[1759755402588,0.00236389,4581.5,4581.4,0.7301]
[1759755404685,0.00236389,4581.5,4581.4,41.5301]
[1759755406591,0.00236389,4581.5,4581.4,44.7379]
[1759755407491,0.30966389,4581.5,4581.4,44.7379]
[1759755407696,0.43346389,4581.5,4581.4,44.4236]
[1759755408290,0.43346389,4581.5,4581.4,44.7311]
[1759755411291,0.43346389,4581.5,4581.4,44.4236]
[1759755411501,0.8187,4581.1,4581.0,0.2107]
[1759755411698,1.1461,4581.1,4581.0,0.2107]
[1759755411988,1.1461,4581.1,4581.0,41.2189]
[1759755412595,0.7533,4581.1,4581.0,41.5264]
[1759755415495,0.7533,4581.1,4581.0,41.9192]
[1759755416186,1.1461,4581.1,4581.0,41.9192]
[1759755416587,0.7533,4581.1,4581.0,41.9192]
[1759755416786,0.5447,4581.1,4581.0,41.9192]
[1759755417698,0.9375,4581.1,4581.0,41.9192]
[1759755419104,0.9375,4581.1,4581.0,41.5264]
[1759755419691,0.9375,4581.1,4581.0,41.9192]
[1759755420603,0.3274,4581.1,4581.0,41.9192]
[1759755421199,0.7202,4581.1,4581.0,41.5264]
[1759755421399,0.7202,4581.1,4581.0,41.9192]
[1759755422396,0.219,4581.2,4581.1,1.1192]
[1759755422802,0.219,4581.2,4581.0,40.8]
[1759755422803,0.93747,4581.4,4581.3,0.81168]
[1759755423001,1.15647,4581.4,4581.3,1.11918]
[1759755423306,0.9723,4581.4,4581.0,40.8]
[1759755423499,1.14609,4581.2,4581.1,0.5182]
[1759755423800,0.3928,4581.0,4580.9,3.2078]
[1759755424096,1.2718,4581.0,4580.9,3.2078]
[1759755424497,1.2718,4581.0,4580.9,3.60061]
[1759755424696,1.2718,4581.0,4580.9,3.81131]
[1759755425299,0.72022,4580.8,4580.7,40.8]
[1759755425499,0.81874,4580.7,4580.6,0.39284]
[1759755425804,1.14614,4580.7,4580.6,0.7264]
[1759755426306,1.14614,4580.7,4580.6,1.11924]
[1759755428802,0.7533,4580.7,4580.6,1.11924]
[1759755429008,0.3274,4580.7,4580.6,1.11924]
[1759755429315,0.72023,4580.7,4580.6,1.11924]
[1759755429614,1.14613,4580.7,4580.6,0.7264]
[1759755430814,1.15921381,4580.7,4580.6,0.7264]
[1759755431216,1.15921381,4580.7,4580.6,0.4189]
[1759755431915,1.37821381,4580.7,4580.6,0.4189]
[1759755432111,1.15921381,4580.7,4580.6,0.4189]
[1759755432316,1.37821381,4580.7,4580.6,0.4189]
[1759755433107,1.38391846,4580.7,4580.6,0.4189]
[1759755433311,1.38391846,4580.7,4580.6,0.81174]
[1759755433508,1.38391846,4580.7,4580.6,0.2107]
[1759755434017,1.38391846,4580.7,4580.6,0.7264]
[1759755434415,0.99108846,4580.7,4580.6,1.11924]
[1759755434616,0.99680751,4580.7,4580.6,1.11924]
[1759755435012,0.78820751,4580.7,4580.6,1.11924]
[1759755436020,0.96203751,4580.7,4580.6,1.11924]
[1759755436219,1.18103751,4580.7,4580.6,1.11924]
[1759755436715,1.18675656,4580.7,4580.6,1.11924]
[1759755436921,0.03022656,4580.7,4580.6,1.11924]
[1759755437120,0.03022656,4580.7,4580.6,6.11924]
[1759755438623,0.7671,4581.3,4581.2,1.1044656]
[1759755438922,1.25196045,4581.3,4581.2,3.952]
[1759755442323,1.26343367,4581.3,4581.2,3.952]
[1759755442924,1.65850752,4581.3,4581.2,3.952]
[1759755443426,1.66080137,4581.3,4581.2,3.952]
[1759755443927,1.66309522,4581.3,4581.2,3.952]
[1759755444521,1.88209522,4581.3,4581.2,3.952]
[1759755445620,1.88209522,4581.3,4581.2,0.7442]
[1759755446026,1.88209522,4581.3,4581.2,0.2184]
[1759755450031,1.88747752,4581.3,4581.2,0.2184]
[1759755450419,1.86374045,4581.3,4581.2,0.2184]
[1759755450624,1.89285057,4581.3,4581.2,0.2184]
[1759755451128,1.89285057,4581.3,4581.2,1.13699]
[1759755452029,1.67385057,4581.3,4581.2,1.13699]
[1759755452226,1.89285057,4581.3,4581.2,1.13699]
[1759755452425,1.89285057,4581.3,4581.2,0.7442]
[1759755452832,1.89822362,4581.3,4581.2,0.7442]
[1759755454433,1.90092879,4581.3,4581.2,0.7442]
[1759755455633,1.68192879,4581.3,4581.2,0.7442]
[1759755455933,1.90092879,4581.3,4581.2,0.7442]
[1759755456135,1.90092879,4581.3,4581.2,0.437]
[1759755457635,1.90092879,4581.3,4581.2,0.7483]
[1759755458938,1.50814879,4581.3,4581.2,0.7483]
[1759755459126,1.90092879,4581.3,4581.2,0.7483]
[1759755461341,1.68192879,4581.3,4581.2,0.7483]
[1759755461538,1.90092879,4581.3,4581.2,0.7483]
[1759755462443,1.90092879,4581.3,4581.2,1.14109]
[1759755463042,1.50814879,4581.3,4581.2,1.14109]
[1759755463242,1.02328834,4581.3,4581.2,1.14109]
[1759755464131,1.41606834,4581.3,4581.2,1.14109]
[1759755464732,1.19706834,4581.3,4581.2,1.14109]
[1759755465033,1.41606834,4581.3,4581.2,1.14109]
[1759755465236,1.02328834,4581.3,4581.2,1.14109]
[1759755465436,0.80428834,4581.3,4581.2,1.14109]
[1759755465839,1.02328834,4581.3,4581.2,1.14109]
[1759755466245,0.03718834,4581.3,4581.2,1.14109]
[1759755466636,0.34798834,4581.3,4581.2,41.94109]
[1759755468543,0.03718834,4581.3,4581.2,41.94109]
[1759755469542,0.37158834,4581.3,4581.2,41.94109]
[1759755472236,0.37158834,4581.3,4581.2,41.5483]
[1759755472448,0.00236389,4581.5,4581.2,41.5483]
[1759755472641,0.3344,4582.0,4581.9,1.12033]
[1759755472837,0.3344,4582.0,4581.9,4.32813]
[1759755473148,0.5565,4582.0,4581.9,4.32813]
[1759755473338,0.4947,4582.3,4582.2,0.5989]
[1759755473540,0.91708692,4582.3,4582.2,1.1203]
[1759755473944,1.25148692,4582.3,4582.2,1.1203]
[1759755474437,0.76629703,4582.3,4582.2,1.1203]
[1759755476939,0.00219703,4582.3,4582.2,1.1203]
[1759755478146,0.33659703,4582.3,4582.2,1.1203]
[1759755479047,0.55869703,4582.3,4582.2,1.1203]
[1759755479347,0.76629703,4582.3,4582.2,1.1203]
[1759755479542,0.76629703,4582.3,4582.0,0.39272]
[1759755479845,0.7641,4582.2,4582.1,0.5989]
[1759755480037,0.7641,4582.2,4582.1,0.2062]
[1759755481241,0.5565,4582.2,4582.1,0.7276]
[1759755482047,0.7641,4582.2,4582.1,0.4161]
[1759755482948,0.7641,4582.2,4582.1,0.80881]
[1759755483140,0.3344,4582.2,4582.1,1.12031]
[1759755483341,0.5565,4582.2,4582.1,1.12031]
[1759755484148,0.00219703,4582.3,4582.2,1.1203]
[1759755487949,0.00219703,4582.3,4582.2,1.3393]
[1759755488848,0.3344,4583.0,4582.9,0.39264]
[1759755489054,0.5565,4583.0,4582.9,4.32804]
[1759755489652,0.8893,4583.0,4582.9,3.6239]
[1759755489848,0.89105925,4583.0,4582.9,3.6239]
[1759755490153,0.89105925,4583.0,4582.9,3.41614957]
[1759755490553,0.89105925,4583.0,4582.9,3.62604957]
[1759755493460,0.89105925,4583.0,4582.9,3.93754957]
[1759755494261,0.33615925,4583.0,4582.9,3.93754957]
[1759755494462,0.00175925,4583.0,4582.9,3.93754957]
[1759755495257,0.33615925,4583.0,4582.9,3.93754957]
[1759755495454,0.55825925,4583.0,4582.9,3.93754957]
[1759755495650,0.33615925,4583.0,4582.9,4.33018957]
[1759755495856,0.33615925,4583.0,4582.9,45.13018957]
[1759755496352,0.00175925,4583.0,4582.9,45.13018957]
[1759755497453,0.00175925,4583.0,4582.9,41.92238957]
[1759755497659,0.00175925,4583.0,4582.9,45.13018957]
[1759755498857,0.32125925,4583.0,4582.9,45.13018957]
[1759755499660,0.00175925,4583.0,4582.9,45.13018957]
[1759755500364,0.32125925,4583.0,4582.9,45.13018957]
[1759755500960,0.5313,4583.6,4583.5,1.13079]
[1759755501262,0.5313,4583.6,4583.5,4.33859]
[1759755501451,0.7491,4583.6,4583.5,4.33859]
[1759755502157,0.53380453,4583.6,4583.5,4.33859]
[1759755502963,0.75160453,4583.6,4583.5,4.03109]
[1759755503761,0.75160453,4583.6,4583.5,4.33859]
[1759755503964,0.75160453,4583.6,4583.5,4.03109]
[1759755505969,0.75160453,4583.6,4583.5,4.33859]
[1759755506566,1.23576789,4583.6,4583.5,3.81059]
[1759755507565,1.23576789,4583.6,4583.5,3.60039]
[1759755508160,1.23576789,4583.6,4583.5,3.81059]
[1759755509768,1.23576789,4583.6,4583.5,3.418]
[1759755509972,1.23576789,4583.6,4583.5,3.2078]
[1759755510172,1.62834789,4583.6,4583.5,3.2078]
[1759755511764,1.62834789,4583.6,4583.0,3.2078]
[1759755511765,0.2118,4583.1,4583.0,3.2078]
[1759755511969,0.7491,4583.1,4583.0,3.418]
[1759755512675,0.7491,4583.1,4583.0,3.81063]
[1759755514075,0.7491,4583.1,4583.0,4.33863]
[1759755516878,0.5313,4583.1,4583.0,4.33863]
[1759755526689,0.5313,4583.1,4583.0,45.13863]
[1759755529291,1.01632256,4583.1,4583.0,44.746]
[1759755529493,1.01632256,4583.1,4583.0,45.13863]
[1759755535296,1.23782256,4583.1,4583.0,4.33863]
[1759755536793,1.23782256,4583.1,4583.0,3.81063]
[1759755536992,1.23782256,4583.1,4583.0,3.2078]
[1759755536993,1.63044256,4583.1,4583.0,3.2078]
[1759755537197,1.63044256,4583.1,4583.0,3.60043]
[1759755537495,1.23782256,4583.1,4583.0,3.60043]
[1759755537698,1.23782256,4583.1,4583.0,3.81853]
[1759755538595,1.23782256,4583.1,4583.0,4.35363]
[1759755538896,1.23782256,4583.1,4583.0,4.03383]
[1759755539287,1.63044256,4583.1,4583.0,4.03383]
[1759755539496,1.63044256,4583.1,4583.0,0.61073]
[1759755540898,1.23782256,4583.1,4583.0,0.61073]
[1759755541090,1.23782256,4583.1,4583.0,0.82603]
[1759755541297,0.39263,4583.0,4582.9,0.00214957]
[1759755541492,1.75665256,4583.0,4582.9,0.00214957]
[1759755541699,1.75665256,4583.0,4582.9,0.39478957]
[1759755542102,1.75665256,4583.0,4582.9,0.61288957]
[1759755542295,1.75665256,4583.0,4582.9,0.22024957]
[1759755542494,1.75665256,4583.0,4582.9,0.39478957]
[1759755542695,1.75665256,4583.0,4582.9,0.00214957]
[1759755544096,1.14846,4582.7,4582.6,0.39267]
[1759755544304,1.27168,4582.5,4582.4,0.61078]
[1759755544496,1.75670256,4582.5,4582.4,0.61078]
[1759755545101,1.75670256,4582.5,4582.4,0.6135762]
[1759755545899,1.75670256,4582.5,4582.4,0.3954762]
[1759755547304,1.75670256,4582.5,4582.4,0.0027962]
[1759755547507,0.83061,4582.1,4582.0,3.2078]
[1759755547799,0.95382,4582.0,4581.8,0.39273]
[1759755548004,0.92292256,4581.9,4581.8,0.39273]
[1759755548205,1.24082256,4581.9,4581.8,0.39273]
[1759755548405,0.7558,4581.7,4581.6,0.61085]
[1759755548606,0.7558,4581.7,4581.6,0.61289018]
[1759755549706,0.7558,4581.7,4581.6,0.39479018]
[1759755550009,0.7558,4581.7,4581.6,0.00204018]
[1759755550506,1.23932769,4581.7,4581.6,0.00204018]
[1759755551914,0.7558,4581.7,4581.6,0.00204018]
[1759755553402,0.7558,4581.7,4581.6,0.75524018]
[1759755553608,0.9748,4581.7,4581.6,0.75524018]
[1759755553914,0.9748,4581.7,4581.6,1.14799018]
[1759755554116,0.7558,4581.7,4581.6,1.14799018]
[1759755554313,1.36754,4581.7,4581.6,1.14799018]
[1759755554510,0.3179,4582.0,4581.9,0.4334]
[1759755554710,0.92962,4582.0,4581.9,1.14593]
[1759755554910,0.3179,4582.0,4581.9,1.14593]
[1759755555115,0.5343,4582.3,4582.2,1.1459]
[1759755555315,0.7533,4582.3,4582.2,1.1459]
[1759755556210,0.2164,4582.7,4582.6,0.60797]
[1759755556416,0.39263,4583.1,4582.9,0.39264]
[1759755556719,3.66827649,4583.1,4583.0,0.7532]
[1759755556915,4.37043362,4583.1,4583.0,0.7532]
[1759755557116,4.68833362,4583.1,4583.0,0.7532]
[1759755557419,4.29570362,4583.1,4583.0,0.7532]
[1759755557726,0.9748,4583.1,4583.0,0.7532]
[1759755559312,0.1226,4583.5,4583.0,1.51669]
[1759755559521,0.2108,4583.5,4583.4,0.7386]
[1759755559819,0.4298,4583.5,4583.4,0.7386]
[1759755560016,0.8957,4583.5,4583.4,0.7386]
[1759755560217,0.8957,4583.5,4583.4,1.1312]
[1759755560414,0.00250453,4583.6,4583.5,0.3217]
[1759755560615,0.22150453,4583.6,4583.5,0.7386]
[1759755560818,0.55150453,4583.6,4583.5,0.7386]
[1759755561721,0.76230453,4583.6,4583.5,0.7386]
[1759755562116,0.98780453,4583.6,4583.5,0.7386]
[1759755562324,0.7663,4583.4,4583.3,3.4196]
[1759755563516,0.7663,4583.4,4583.3,3.9464]
[1759755567221,0.22150453,4583.6,4583.3,3.9464]
[1759755567425,0.22150453,4583.6,4583.5,1.20509]
[1759755567821,0.55150453,4583.6,4583.5,1.20509]
[1759755568826,0.55150453,4583.6,4583.5,1.13119]
[1759755569827,0.22150453,4583.6,4583.5,1.13119]
[1759755570827,0.55150453,4583.6,4583.5,1.13119]
[1759755572930,0.76230453,4583.6,4583.5,1.13119]
[1759755573231,0.22150453,4583.6,4583.5,1.20509]
[1759755573830,0.55150453,4583.6,4583.5,1.20509]
[1759755574222,0.22150453,4583.6,4583.5,1.20509]
[1759755575329,0.22150453,4583.6,4583.5,42.00509]
[1759755576134,0.00250453,4583.6,4583.5,42.00509]
[1759755577637,0.32730453,4583.6,4583.5,41.93119]
[1759755585143,0.00250453,4583.6,4583.5,42.00479]
[1759755587245,0.32730453,4583.6,4583.5,42.00479]
[1759755587745,0.81307634,4583.6,4583.5,41.93119]
[1759755589546,0.48827634,4583.6,4583.5,41.93119]
[1759755590749,0.80687634,4583.6,4583.5,41.93119]
[1759755591944,0.32110453,4583.6,4583.5,41.93119]
[1759755592344,0.80718227,4583.6,4583.5,41.93119]
[1759755592547,0.32110453,4583.6,4583.5,41.93119]
[1759755593343,0.4885823,4583.6,4583.5,41.93119]
[1759755593748,0.8071823,4583.6,4583.5,41.93119]
[1759755599753,1.2348823,4583.6,4583.5,1.13119]
[1759755600156,1.6274623,4583.6,4583.5,0.4169]
[1759755600360,0.871,4583.0,4582.9,0.4333]
[1759755600560,1.35707777,4583.0,4582.9,0.4333]
[1759755600752,1.35707777,4583.0,4582.9,0.7452]
[1759755603159,1.01127777,4583.0,4582.9,0.7452]
[1759755604150,0.48607777,4583.0,4582.9,0.7452]
[1759755604361,0.00250453,4583.6,4583.5,0.3119]
[1759755604656,0.48836848,4583.6,4583.5,0.819]
[1759755605161,1.01356848,4583.6,4583.5,0.7452]
[1759755608859,0.80696848,4583.6,4583.5,0.7452]
[1759755609054,0.80696848,4583.6,4583.5,1.13779]